Workbook

Sheet 总成绩
A1: 附件一
A2: 2023年义县面向社会公开招聘事业单位工作人员（教师）总成绩
A3: 序号 | B3: 准考证号 | C3: 姓名 | D3: 笔试分数 | E3: 面试分数 | F3: 总成绩 | G3: 报考岗位序号、单位名称、岗位名称
A4: 1 | B4: 20230160 | C4: 孙悦 | D4: 89.1 | E4: 80.4 | F4: =D4*0.5+E4*0.5 -> 84.75 | G4: 01 义县幼儿园 幼儿园综合学科教师
A5: 2 | B5: 20230010 | C5: 车欣妍 | D5: 87.08 | E5: 81.8 | F5: 84.44 | G5: 01 义县幼儿园 幼儿园综合学科教师
A6: 3 | B6: 20230106 | C6: 刘明月 | D6: 86.12 | E6: 82 | F6: 84.06 | G6: 01 义县幼儿园 幼儿园综合学科教师
A7: 4 | B7: 20230185 | C7: 王旭彤 | D7: 85.1 | E7: 80.2 | F7: 82.65 | G7: 01 义县幼儿园 幼儿园综合学科教师
A8: 5 | B8: 20230207 | C8: 邢明见 | D8: 84.78 | E8: 82.6 | F8: 83.69 | G8: 01 义县幼儿园 幼儿园综合学科教师
A9: 6 | B9: 20230235 | C9: 张晗 | D9: 84.78 | E9: 放弃 | G9: 01 义县幼儿园 幼儿园综合学科教师
A10: 7 | B10: 20230221 | C10: 杨薇 | D10: 84.44 | E10: 81.4 | F10: =D10*0.5+E10*0.5 -> 82.92 | G10: 01 义县幼儿园 幼儿园综合学科教师
A11: 8 | B11: 20230089 | C11: 李笑天 | D11: 84.1 | E11: 80.2 | F11: 82.15 | G11: 01 义县幼儿园 幼儿园综合学科教师
A12: 9 | B12: 20230009 | C12: 常佳慧 | D12: 84.02 | E12: 81.6 | F12: 82.81 | G12: 01 义县幼儿园 幼儿园综合学科教师
A13: 10 | B13: 20230103 | C13: 刘可欣 | D13: 83.84 | E13: 83.2 | F13: 83.52 | G13: 01 义县幼儿园 幼儿园综合学科教师
A14: 11 | B14: 20230161 | C14: 孙悦 | D14: 83.76 | E14: 81.4 | F14: 82.58 | G14: 01 义县幼儿园 幼儿园综合学科教师
A15: 12 | B15: 20230104 | C15: 刘美晨 | D15: 83.66 | E15: 81.8 | F15: 82.73 | G15: 01 义县幼儿园 幼儿园综合学科教师
A16: 13 | B16: 20230021 | C16: 戴加齐 | D16: 83.34 | E16: 80 | F16: 81.67 | G16: 01 义县幼儿园 幼儿园综合学科教师
A17: 14 | B17: 20230093 | C17: 梁月月 | D17: 83.16 | E17: 80.6 | F17: 81.88 | G17: 01 义县幼儿园 幼儿园综合学科教师
A18: 15 | B18: 20230001 | C18: 艾爽 | D18: 82.88 | E18: 82.2 | F18: 82.54 | G18: 01 义县幼儿园 幼儿园综合学科教师
A19: 16 | B19: 20230209 | C19: 徐高娃 | D19: 82.4 | E19: 78.4 | F19: 80.4 | G19: 01 义县幼儿园 幼儿园综合学科教师
A20: 17 | B20: 20230063 | C20: 侯欣杨 | D20: 82.08 | E20: 80.8 | F20: 81.44 | G20: 01 义县幼儿园 幼儿园综合学科教师
A21: 18 | B21: 20230033 | C21: 段美多 | D21: 81.64 | E21: 84.6 | F21: 83.12 | G21: 01 义县幼儿园 幼儿园综合学科教师
A22: 19 | B22: 20230020 | C22: 代晓燕 | D22: 81.3 | E22: 81 | F22: 81.15 | G22: 01 义县幼儿园 幼儿园综合学科教师
A23: 20 | B23: 20230086 | C23: 李爽 | D23: 81.2 | E23: 83.4 | F23: 82.3 | G23: 01 义县幼儿园 幼儿园综合学科教师
A24: 21 | B24: 20230036 | C24: 方乐汐 | D24: 81.12 | E24: 79.2 | F24: 80.16 | G24: 01 义县幼儿园 幼儿园综合学科教师
A25: 22 | B25: 20230096 | C25: 凌宏楠 | D25: 80.72 | E25: 76.6 | F25: 78.66 | G25: 01 义县幼儿园 幼儿园综合学科教师
A26: 23 | B26: 20230150 | C26: 宋哲琦 | D26: 80.62 | E26: 79.2 | F26: 79.91 | G26: 01 义县幼儿园 幼儿园综合学科教师
A27: 24 | B27: 20230187 | C27: 王艳华 | D27: 80.62 | E27: 80.6 | F27: 80.61 | G27: 01 义县幼儿园 幼儿园综合学科教师
A28: 25 | B28: 20230155 | C28: 孙丽侨 | D28: 80.52 | E28: 77.8 | F28: 79.16 | G28: 01 义县幼儿园 幼儿园综合学科教师
A29: 26 | B29: 20230044 | C29: 高敏 | D29: 80.38 | E29: 81.6 | F29: 80.99 | G29: 01 义县幼儿园 幼儿园综合学科教师
A30: 27 | B30: 20230271 | C30: 周建华 | D30: 80.26 | E30: 78.6 | F30: 79.43 | G30: 01 义县幼儿园 幼儿园综合学科教师
A31: 28 | B31: 20230273 | C31: 朱婧婷 | D31: 80.04 | E31: 81.6 | F31: 80.82 | G31: 01 义县幼儿园 幼儿园综合学科教师
A32: 29 | B32: 20230289 | C32: 张钰晗 | D32: 80.44 | E32: 81.2 | F32: 80.82 | G32: 02 义县第二幼儿园 幼儿园综合学科教师
A33: 30 | B33: 20230277 | C33: 焦俊萍 | D33: 80.08 | E33: 74.2 | F33: 77.14 | G33: 02 义县第二幼儿园 幼儿园综合学科教师
A34: 31 | B34: 20230288 | C34: 张思佳 | D34: 77.66 | E34: 80.4 | F34: 79.03 | G34: 02 义县第二幼儿园 幼儿园综合学科教师
A35: 32 | B35: 20230281 | C35: 刘文爽 | D35: 74.26 | E35: 81.8 | F35: 78.03 | G35: 02 义县第二幼儿园 幼儿园综合学科教师
A36: 33 | B36: 20230428 | C36: 龙一萌 | D36: 91.62 | E36: 73 | F36: 82.31 | G36: 03 义县第三幼儿园 幼儿园综合学科教师
A37: 34 | B37: 20230444 | C37: 牟颖 | D37: 89.6 | E37: 74.8 | F37: 82.2 | G37: 03 义县第三幼儿园 幼儿园综合学科教师
A38: 35 | B38: 20230591 | C38: 张思瑶 | D38: 88.24 | E38: 79 | F38: 83.62 | G38: 03 义县第三幼儿园 幼儿园综合学科教师
A39: 36 | B39: 20230357 | C39: 胡雅彬 | D39: 87.06 | E39: 82.6 | F39: 84.83 | G39: 03 义县第三幼儿园 幼儿园综合学科教师
A40: 37 | B40: 20230569 | C40: 尹逍 | D40: 85 | E40: 80.8 | F40: 82.9 | G40: 03 义县第三幼儿园 幼儿园综合学科教师
A41: 38 | B41: 20230547 | C41: 徐铭蔚 | D41: 84.88 | E41: 83 | F41: 83.94 | G41: 03 义县第三幼儿园 幼儿园综合学科教师
A42: 39 | B42: 20230461 | C42: 商哲 | D42: 84.78 | E42: 77 | F42: 80.89 | G42: 03 义县第三幼儿园 幼儿园综合学科教师
A43: 40 | B43: 20230423 | C43: 刘一俏 | D43: 84.6 | E43: 82.6 | F43: 83.6 | G43: 03 义县第三幼儿园 幼儿园综合学科教师
A44: 41 | B44: 20230491 | C44: 王荟馨 | D44: 84.2 | E44: 81.2 | F44: 82.7 | G44: 03 义县第三幼儿园 幼儿园综合学科教师
A45: 42 | B45: 20230435 | C45: 马丹 | D45: 84.18 | E45: 78 | F45: 81.09 | G45: 03 义县第三幼儿园 幼儿园综合学科教师
A46: 43 | B46: 20230310 | C46: 陈岩 | D46: 84.16 | E46: 81.2 | F46: 82.68 | G46: 03 义县第三幼儿园 幼儿园综合学科教师
A47: 44 | B47: 20230426 | C47: 刘禹杭 | D47: 83.74 | E47: 78.2 | F47: 80.97 | G47: 03 义县第三幼儿园 幼儿园综合学科教师
A48: 45 | B48: 20230564 | C48: 杨馨怡 | D48: 83.68 | E48: 82.6 | F48: 83.14 | G48: 03 义县第三幼儿园 幼儿园综合学科教师
A49: 46 | B49: 20230313 | C49: 陈裕鑫 | D49: 83.24 | E49: 81.2 | F49: 82.22 | G49: 03 义县第三幼儿园 幼儿园综合学科教师
A50: 47 | B50: 20230521 | C50: 王洋 | D50: 83.18 | E50: 76.2 | F50: 79.69 | G50: 03 义县第三幼儿园 幼儿园综合学科教师
A51: 48 | B51: 20230322 | C51: 单舒雅 | D51: 82.74 | E51: 79.2 | F51: 80.97 | G51: 03 义县第三幼儿园 幼儿园综合学科教师
A52: 49 | B52: 20230361 | C52: 纪湘岚 | D52: 82.66 | E52: 76.2 | F52: 79.43 | G52: 03 义县第三幼儿园 幼儿园综合学科教师
A53: 50 | B53: 20230495 | C53: 王婧怡 | D53: 82.34 | E53: 70.8 | F53: 76.57 | G53: 03 义县第三幼儿园 幼儿园综合学科教师
A54: 51 | B54: 20230376 | C54: 李春雪 | D54: 82.24 | E54: 78 | F54: 80.12 | G54: 03 义县第三幼儿园 幼儿园综合学科教师
A55: 52 | B55: 20230342 | C55: 郭彤彤 | D55: 82.14 | E55: 80.4 | F55: 81.27 | G55: 03 义县第三幼儿园 幼儿园综合学科教师
A56: 53 | B56: 20230624 | C56: 祝新茹 | D56: 82.14 | E56: 82.2 | F56: 82.17 | G56: 03 义县第三幼儿园 幼儿园综合学科教师
A57: 54 | B57: 20230496 | C57: 王静 | D57: 82.04 | E57: 67.8 | F57: 74.92 | G57: 03 义县第三幼儿园 幼儿园综合学科教师
A58: 55 | B58: 20230570 | C58: 于滢 | D58: 81.56 | E58: 82.2 | F58: 81.88 | G58: 03 义县第三幼儿园 幼儿园综合学科教师
A59: 56 | B59: 20230534 | C59: 温裕婷 | D59: 81.46 | E59: 75.4 | F59: 78.43 | G59: 03 义县第三幼儿园 幼儿园综合学科教师
A60: 57 | B60: 20230420 | C60: 刘潇潇 | D60: 81.38 | E60: 77.4 | F60: 79.39 | G60: 03 义县第三幼儿园 幼儿园综合学科教师
A61: 58 | B61: 20232351 | C61: 张悦 | D61: 80.72 | E61: 82.4 | F61: 81.56 | G61: 03 义县第三幼儿园 幼儿园综合学科教师
A62: 59 | B62: 20230345 | C62: 郭玉娇 | D62: 80.7 | E62: 74.8 | F62: 77.75 | G62: 03 义县第三幼儿园 幼儿园综合学科教师
A63: 60 | B63: 20230522 | C63: 王一尖 | D63: 80.2 | E63: 69 | F63: 74.6 | G63: 03 义县第三幼儿园 幼儿园综合学科教师
A64: 61 | B64: 20230662 | C64: 刘璇 | D64: 88.16 | E64: 82.2 | F64: 85.18 | G64: 04 义县大榆树堡镇中心小学 小学数学教师
A65: 62 | B65: 20230714 | C65: 张萃 | D65: 87.06 | E65: 83.8 | F65: 85.43 | G65: 04 义县大榆树堡镇中心小学 小学数学教师
A66: 63 | B66: 20230754 | C66: 王延峰 | D66: 84.18 | E66: 放弃 | G66: 05 义县大榆树堡镇中心小学 小学体育教师
A67: 64 | B67: 20230756 | C67: 邬馨雨 | D67: 83.56 | E67: 82.9 | F67: =D67*0.5+E67*0.5 -> 83.23 | G67: 05 义县大榆树堡镇中心小学 小学体育教师
A68: 65 | B68: 20230780 | C68: 姚露 | D68: 89 | E68: 92.6 | F68: 90.8 | G68: 06 义县高台子镇中心小学 小学信息技术教师
A69: 66 | B69: 20230764 | C69: 宝坤宇 | D69: 86.66 | E69: 79.2 | F69: 82.93 | G69: 06 义县高台子镇中心小学 小学信息技术教师
A70: 67 | B70: 20230823 | C70: 刘璐 | D70: 90.54 | E70: 85.4 | F70: 87.97 | G70: 07 义县九道岭镇中心小学 小学英语教师
A71: 68 | B71: 20230855 | C71: 王溪凌 | D71: 90.12 | E71: 84.6 | F71: 87.36 | G71: 07 义县九道岭镇中心小学 小学英语教师
A72: 69 | B72: 20230913 | C72: 李磊 | D72: 90.18 | E72: 79.2 | F72: 84.69 | G72: 08 义县九道岭镇中心小学 小学体育教师
A73: 70 | B73: 20230919 | C73: 石鹏飞 | D73: 81.98 | E73: 放弃 | G73: 08 义县九道岭镇中心小学 小学体育教师
A74: 71 | B74: 20230936 | C74: 程丽妍 | D74: 86.22 | E74: 88.2 | F74: =D74*0.5+E74*0.5 -> 87.21 | G74: 09 义县留龙沟学校 小学数学教师
A75: 72 | B75: 20230974 | C75: 聂丽佳 | D75: 85.22 | E75: 84 | F75: 84.61 | G75: 09 义县留龙沟学校 小学数学教师
A76: 73 | B76: 20231032 | C76: 敖瀛天 | D76: 91.2 | E76: 84.8 | F76: 88 | G76: 10 义县留龙沟学校 小学语文教师
A77: 74 | B77: 20231081 | C77: 姜婉婷 | D77: 89.08 | E77: 83.6 | F77: 86.34 | G77: 10 义县留龙沟学校 小学语文教师
A78: 75 | B78: 20231198 | C78: 才郡庄 | D78: 90.12 | E78: 86.8 | F78: 88.46 | G78: 11 义县稍户营子中心小学 小学美术教师
A79: 76 | B79: 20231226 | C79: 邢畅 | D79: 89.62 | E79: 放弃 | G79: 11 义县稍户营子中心小学 小学美术教师
A80: 77 | B80: 20231335 | C80: 周雨静 | D80: 88.16 | E80: 85.6 | F80: =D80*0.5+E80*0.5 -> 86.88 | G80: 12 义县稍户营子中心小学 小学语文教师
A81: 78 | B81: 20231331 | C81: 张斯琪 | D81: 86.24 | E81: 82 | F81: 84.12 | G81: 12 义县稍户营子中心小学 小学语文教师
A82: 79 | B82: 20231344 | C82: 郭香 | D82: 87.06 | E82: 87.2 | F82: 87.13 | G82: 13 义县铁路小学 小学信息技术教师
A83: 80 | B83: 20231347 | C83: 蒋特 | D83: 84.78 | E83: 88.6 | F83: 86.69 | G83: 13 义县铁路小学 小学信息技术教师
A84: 81 | B84: 20231414 | C84: 宋子健 | D84: 89.12 | E84: 85.2 | F84: 87.16 | G84: 14 义县瓦子峪镇中心小学 小学数学教师
A85: 82 | B85: 20231383 | C85: 柏雪 | D85: 88.16 | E85: 放弃 | G85: 14 义县瓦子峪镇中心小学 小学数学教师
A86: 83 | B86: 20231538 | C86: 袁梦 | D86: 87.12 | E86: 85.2 | F86: =D86*0.5+E86*0.5 -> 86.16 | G86: 15 义县瓦子峪镇中心小学 小学语文教师
A87: 84 | B87: 20231502 | C87: 龙淼 | D87: 86.72 | E87: 84.6 | F87: 85.66 | G87: 15 义县瓦子峪镇中心小学 小学语文教师
A88: 85 | B88: 20231565 | C88: 汪梓宁 | D88: 75.28 | E88: 91.6 | F88: 83.44 | G88: 16 义县宜州小学 小学道德与法治教师
A89: 86 | B89: 20231563 | C89: 何海洋 | D89: 67.92 | E89: 90.4 | F89: 79.16 | G89: 16 义县宜州小学 小学道德与法治教师
A90: 87 | B90: 20231580 | C90: 李阳 | D90: 90.04 | E90: 90.8 | F90: 90.42 | G90: 17 义县宜州小学 小学美术教师
A91: 88 | B91: 20231576 | C91: 富宇 | D91: 82.16 | E91: 87.8 | F91: 84.98 | G91: 17 义县宜州小学 小学美术教师
A92: 89 | B92: 20231618 | C92: 张鹏程 | D92: 80.2 | E92: 82.5 | F92: 81.35 | G92: 18 义县宜州小学 小学体育教师
A93: 90 | B93: 20231611 | C93: 王剑 | D93: 75.28 | E93: 81.1 | F93: 78.19 | G93: 18 义县宜州小学 小学体育教师
A94: 91 | B94: 20231626 | C94: 李书瑜 | D94: 82.8 | E94: 84.6 | F94: 83.7 | G94: 19 义县宜州小学 小学音乐教师
A95: 92 | B95: 20231623 | C95: 郭鑫雨 | D95: 82.66 | E95: 82.8 | F95: 82.73 | G95: 19 义县宜州小学 小学音乐教师
A96: 93 | B96: 20231648 | C96: 宫禧妮 | D96: 92.06 | E96: 放弃 | G96: 20 义县宜州小学 小学英语教师
A97: 94 | B97: 20231678 | C97: 孙越男 | D97: 86.8 | E97: 85 | F97: =D97*0.5+E97*0.5 -> 85.9 | G97: 20 义县宜州小学 小学英语教师
A98: 95 | B98: 20231734 | C98: 裴保凯 | D98: 85.78 | E98: 82.7 | F98: 84.24 | G98: 21 义县朱瑞小学 小学体育教师
A99: 96 | B99: 20231724 | C99: 郭峰 | D99: 77.24 | E99: 81.4 | F99: 79.32 | G99: 21 义县朱瑞小学 小学体育教师
A100: 97 | B100: 20231746 | C100: 武晴 | D100: 81.3 | E100: 83.8 | F100: 82.55 | G100: 22 义县朱瑞小学 小学音乐教师
A101: 98 | B101: 20231740 | C101: 雷秋月 | D101: 76.3 | E101: 81.7 | F101: 79 | G101: 22 义县朱瑞小学 小学音乐教师
A102: 99 | B102: 20231766 | C102: 徐佳宁 | D102: 91.12 | E102: 81 | F102: 86.06 | G102: 23 义县爱心学校 小学特殊教育教师
A103: 100 | B103: 20231770 | C103: 杨璐 | D103: 80.8 | E103: 80 | F103: 80.4 | G103: 23 义县爱心学校 小学特殊教育教师
A104: 101 | B104: 20231781 | C104: 庄美华 | D104: 81.22 | E104: 83.4 | F104: 82.31 | G104: 24 义县爱心学校 初中特殊教育教师
A105: 102 | B105: 20231778 | C105: 辛志博 | D105: 77.22 | E105: 79.8 | F105: 78.51 | G105: 24 义县爱心学校 初中特殊教育教师
A106: 103 | B106: 20231780 | C106: 于文晗 | D106: 66 | E106: 80.8 | F106: 73.4 | G106: 24 义县爱心学校 初中特殊教育教师
A107: 104 | B107: 20231783 | C107: 张兴 | D107: 64.78 | E107: 88.4 | F107: 76.59 | G107: 26 义县白庙子初级中学 初中数学教师
A108: 105 | B108: 20231784 | C108: 陈金玲 | D108: 80.08 | E108: 88.8 | F108: 84.44 | G108: 28 义县大定堡学校 初中物理教师
A109: 106 | B109: 20231786 | C109: 刘璐 | D109: 76.46 | E109: 88.8 | F109: 82.63 | G109: 28 义县大定堡学校 初中物理教师
A110: 107 | B110: 20231801 | C110: 周佳兴 | D110: 85.64 | E110: 85.3 | F110: 85.47 | G110: 32 义县大榆树堡初级中学 初中体育教师
A111: 108 | B111: 20231797 | C111: 许晓超 | D111: 83.24 | E111: 80.6 | F111: 81.92 | G111: 32 义县大榆树堡初级中学 初中体育教师
A112: 109 | B112: 20231807 | C112: 王璐瑶 | D112: 72.98 | E112: 81.4 | F112: 77.19 | G112: 33 义县大榆树堡初级中学 初中语文教师
A113: 110 | B113: 20231803 | C113: 李春波 | D113: 59.22 | E113: 84 | F113: 71.61 | G113: 33 义县大榆树堡初级中学 初中语文教师
A114: 111 | B114: 20231840 | C114: 谢旭 | D114: 84.7 | E114: 79.4 | F114: 82.05 | G114: 34 义县大榆树堡初级中学 初中英语教师
A115: 112 | B115: 20231829 | C115: 欧鸽 | D115: 84.6 | E115: 84.2 | F115: 84.4 | G115: 34 义县大榆树堡初级中学 初中英语教师
A116: 113 | B116: 20231855 | C116: 隋强 | D116: 73.94 | E116: 91.8 | F116: 82.87 | G116: 36 义县第一初级中学 初中历史教师
A117: 114 | B117: 20231853 | C117: 郝祥宇 | D117: 69.64 | E117: 85.8 | F117: 77.72 | G117: 36 义县第一初级中学 初中历史教师
A118: 115 | B118: 20231862 | C118: 马蔚然 | D118: 87.04 | E118: 83.2 | F118: 85.12 | G118: 37 义县第一初级中学 初中生物教师
A119: 116 | B119: 20231858 | C119: 高雨薇 | D119: 84.7 | E119: 84.8 | F119: 84.75 | G119: 37 义县第一初级中学 初中生物教师
A120: 117 | B120: 20231879 | C120: 宗驿 | D120: 79.26 | E120: 83.2 | F120: 81.23 | G120: 38 义县第一初级中学 初中物理教师
A121: 118 | B121: 20231876 | C121: 孟佳 | D121: 74.36 | E121: 86.2 | F121: 80.28 | G121: 38 义县第一初级中学 初中物理教师
A122: 119 | B122: 20231889 | C122: 于翠萍 | D122: 75.86 | E122: 79 | F122: 77.43 | G122: 39 义县第一初级中学 初中音乐教师
A123: 120 | B123: 20231890 | C123: 虞丽 | D123: 75.62 | E123: 81.2 | F123: 78.41 | G123: 39 义县第一初级中学 初中音乐教师
A124: 121 | B124: 20231916 | C124: 张妍 | D124: 81.22 | E124: 84.6 | F124: 82.91 | G124: 40 义县第一初级中学 初中语文教师
A125: 122 | B125: 20231908 | C125: 王娜 | D125: 80.3 | E125: 83 | F125: 81.65 | G125: 40 义县第一初级中学 初中语文教师
A126: 123 | B126: 20231935 | C126: 王美玉 | D126: 84.78 | E126: 84 | F126: 84.39 | G126: 41 义县第一初级中学 初中数学教师
A127: 124 | B127: 20231941 | C127: 张骞月 | D127: 84.18 | E127: 85.8 | F127: 84.99 | G127: 41 义县第一初级中学 初中数学教师
A128: 125 | B128: 20231945 | C128: 袁文静 | D128: 84.28 | E128: 85 | F128: 84.64 | G128: 43 义县高台子初级中学 初中历史教师
A129: 126 | B129: 20231958 | C129: 张欣瑶 | D129: 78.76 | E129: 放弃 | G129: 44 义县高台子初级中学 初中美术教师
A130: 127 | B130: 20231953 | C130: 王雯萱 | D130: 75.7 | E130: 82.2 | F130: =D130*0.5+E130*0.5 -> 78.95 | G130: 44 义县高台子初级中学 初中美术教师
A131: 128 | B131: 20231960 | C131: 陈姵宜 | D131: 88.16 | E131: 80.8 | F131: 84.48 | G131: 47 义县高台子初级中学 初中英语教师
A132: 129 | B132: 20231989 | C132: 徐鸿睿 | D132: 87.72 | E132: 82.2 | F132: 84.96 | G132: 47 义县高台子初级中学 初中英语教师
A133: 130 | B133: 20231995 | C133: 董金华 | D133: 80.82 | E133: 放弃 | G133: 51 义县九道岭初级中学 初中体育教师
A134: 131 | B134: 20232008 | C134: 张天旭 | D134: 75.1 | E134: 82.8 | F134: =D134*0.5+E134*0.5 -> 78.95 | G134: 51 义县九道岭初级中学 初中体育教师
A135: 132 | B135: 20232010 | C135: 冷彩霞 | D135: 69.22 | E135: 84.6 | F135: 76.91 | G135: 52 义县九道岭初级中学 初中物理教师
A136: 133 | B136: 20232018 | C136: 罗舒丹 | D136: 78.82 | E136: 90.6 | F136: 84.71 | G136: 53 义县九道岭初级中学 初中信息技术教师
A137: 134 | B137: 20232027 | C137: 朱苏日娜 | D137: 77.74 | E137: 85.8 | F137: 81.77 | G137: 53 义县九道岭初级中学 初中信息技术教师
A138: 135 | B138: 20232030 | C138: 佟畅 | D138: 86.1 | E138: 85.2 | F138: 85.65 | G138: 58 义县聚粮屯初级中学 初中物理教师
A139: 136 | B139: 20232028 | C139: 韩利坤 | D139: 74.2 | E139: 81 | F139: 77.6 | G139: 58 义县聚粮屯初级中学 初中物理教师
A140: 137 | B140: 20232036 | C140: 张莹 | D140: 78.48 | E140: 81.8 | F140: 80.14 | G140: 59 义县聚粮屯初级中学 初中语文教师
A141: 138 | B141: 20232034 | C141: 闫姝君 | D141: 77.34 | E141: 85.6 | F141: 81.47 | G141: 59 义县聚粮屯初级中学 初中语文教师
A142: 139 | B142: 20232037 | C142: 陈旭 | D142: 83.14 | E142: 87 | F142: 85.07 | G142: 60 义县聚粮屯初级中学 初中数学教师
A143: 140 | B143: 20232038 | C143: 刘莹 | D143: 67.48 | E143: 85.6 | F143: 76.54 | G143: 60 义县聚粮屯初级中学 初中数学教师
A144: 141 | B144: 20232041 | C144: 高艺萌 | D144: 81.8 | E144: 85.4 | F144: 83.6 | G144: 61 义县刘龙台学校 初中语文教师
A145: 142 | B145: 20232045 | C145: 杨藉媛 | D145: 81.12 | E145: 82.6 | F145: 81.86 | G145: 61 义县刘龙台学校 初中语文教师
A146: 143 | B146: 20232049 | C146: 贾晓鸣 | D146: 82.26 | E146: 85 | F146: 83.63 | G146: 65 义县农村实验学校 初中美术教师
A147: 144 | B147: 20232046 | C147: 郜佳思 | D147: 72.9 | E147: 85.4 | F147: 79.15 | G147: 65 义县农村实验学校 初中美术教师
A148: 145 | B148: 20232071 | C148: 赵佳楠 | D148: 80.22 | E148: 81.3 | F148: 80.76 | G148: 67 义县农村实验学校 初中体育教师
A149: 146 | B149: 20232072 | C149: 邹虑 | D149: 76.7 | E149: 82.4 | F149: 79.55 | G149: 67 义县农村实验学校 初中体育教师
A150: 147 | B150: 20232076 | C150: 宋放 | D150: 80.02 | E150: 81.6 | F150: 80.81 | G150: 69 义县七里河初级中学 初中音乐教师
A151: 148 | B151: 20232074 | C151: 柳青青 | D151: 78.9 | E151: 84.1 | F151: 81.5 | G151: 69 义县七里河初级中学 初中音乐教师
A152: 149 | B152: 20232101 | C152: 谭皓天 | D152: 89.1 | E152: 放弃 | G152: 71 义县稍户营子初级中学 初中化学教师
A153: 150 | B153: 20232117 | C153: 周兵 | D153: 88.76 | E153: 87 | F153: =D153*0.5+E153*0.5 -> 87.88 | G153: 71 义县稍户营子初级中学 初中化学教师
A154: 151 | B154: 20232119 | C154: 白建华 | D154: 82.82 | E154: 82.4 | F154: 82.61 | G154: 75 义县稍户营子初级中学 初中语文教师
A155: 152 | B155: 20232120 | C155: 孙薪 | D155: 74.94 | E155: 放弃 | G155: 75 义县稍户营子初级中学 初中语文教师
A156: 153 | B156: 20232126 | C156: 张传月 | D156: 83.06 | E156: 83.4 | F156: 83.23 | G156: 79 义县瓦子峪初级中学 初中生物教师
A157: 154 | B157: 20232127 | C157: 张璐 | D157: 80.2 | E157: 86.4 | F157: 83.3 | G157: 79 义县瓦子峪初级中学 初中生物教师
A158: 155 | B158: 20232129 | C158: 韩志东 | D158: 73.92 | E158: 88.4 | F158: 81.16 | G158: 80 义县瓦子屿初级中学 初中数学教师
A159: 156 | B159: 20232128 | C159: 高印龙 | D159: 69.42 | E159: 79 | F159: 74.21 | G159: 80 义县瓦子屿初级中学 初中数学教师
A160: 157 | B160: 20232151 | C160: 张拓 | D160: 88.24 | E160: 85 | F160: 86.62 | G160: 82 义县瓦子峪初级中学 初中英语教师
A161: 158 | B161: 20232135 | C161: 马海彤 | D161: 86.22 | E161: 85 | F161: 85.61 | G161: 82 义县瓦子峪初级中学 初中英语教师
A162: 159 | B162: 20232156 | C162: 刘艳楠 | D162: 79.6 | E162: 82.4 | F162: 81 | G162: 83 义县高级中学 高中地理教师
A163: 160 | B163: 20232157 | C163: 夏清 | D163: 78.9 | E163: 90.4 | F163: 84.65 | G163: 83 义县高级中学 高中地理教师
A164: 161 | B164: 20232168 | C164: 肖婷轩 | D164: 87 | E164: 84 | F164: 85.5 | G164: 84 义县高级中学 高中历史教师
A165: 162 | B165: 20232164 | C165: 李旭 | D165: 63.54 | E165: 放弃 | G165: 84 义县高级中学 高中历史教师
A166: 163 | B166: 20232161 | C166: 蔡莹 | D166: 61.54 | E166: 87.6 | F166: =D166*0.5+E166*0.5 -> 74.57 | G166: 84 义县高级中学 高中历史教师
A167: 164 | B167: 20232174 | C167: 王娜 | D167: 82.64 | E167: 86.8 | F167: 84.72 | G167: 85 义县高级中学 高中生物教师
A168: 165 | B168: 20232177 | C168: 张诗慧 | D168: 75.54 | E168: 83.4 | F168: 79.47 | G168: 85 义县高级中学 高中生物教师
A169: 166 | B169: 20232173 | C169: 王晶 | D169: 68.34 | E169: 82.8 | F169: 75.57 | G169: 85 义县高级中学 高中生物教师
A170: 167 | B170: 20232175 | C170: 闫续哲 | D170: 63.68 | E170: 86 | F170: 74.84 | G170: 85 义县高级中学 高中生物教师
A171: 168 | B171: 20232179 | C171: 刘芙妤 | D171: 75.1 | E171: 86.6 | F171: 80.85 | G171: 86 义县高级中学 高中数学教师
A172: 169 | B172: 20232181 | C172: 张凌建 | D172: 65.2 | E172: 88.4 | F172: 76.8 | G172: 86 义县高级中学 高中数学教师
A173: 170 | B173: 20232193 | C173: 闫佳欣 | D173: 79.78 | E173: 87.2 | F173: 83.49 | G173: 87 义县高级中学 高中物理教师
A174: 171 | B174: 20232196 | C174: 张桂赫 | D174: 73.76 | E174: 89.2 | F174: 81.48 | G174: 87 义县高级中学 高中物理教师
A175: 172 | B175: 20232188 | C175: 沈思怡 | D175: 71.7 | E175: 89 | F175: 80.35 | G175: 87 义县高级中学 高中物理教师
A176: 173 | B176: 20232185 | C176: 孔令妍 | D176: 71.06 | E176: 78.6 | F176: 74.83 | G176: 87 义县高级中学 高中物理教师
A177: 174 | B177: 20232192 | C177: 薛昊 | D177: 69.54 | E177: 87 | F177: 78.27 | G177: 87 义县高级中学 高中物理教师
A178: 175 | B178: 20232189 | C178: 王书梁 | D178: 61.8 | E178: 82.6 | F178: 72.2 | G178: 87 义县高级中学 高中物理教师
A179: 176 | B179: 20232232 | C179: 张晓斌 | D179: 84.7 | E179: 81 | F179: 82.85 | G179: 88 义县高级中学 高中语文教师
A180: 177 | B180: 20232210 | C180: 李晴 | D180: 83.1 | E180: 84.6 | F180: 83.85 | G180: 88 义县高级中学 高中语文教师
A181: 178 | B181: 20232216 | C181: 马鉴姝 | D181: 80.8 | E181: 87.6 | F181: 84.2 | G181: 88 义县高级中学 高中语文教师
A182: 179 | B182: 20232221 | C182: 王丹凤 | D182: 80.3 | E182: 83.8 | F182: 82.05 | G182: 88 义县高级中学 高中语文教师
A183: 180 | B183: 20232226 | C183: 王尊 | D183: 79.7 | E183: 81.4 | F183: 80.55 | G183: 88 义县高级中学 高中语文教师
A184: 181 | B184: 20232218 | C184: 穆桐 | D184: 78.76 | E184: 82.8 | F184: 80.78 | G184: 88 义县高级中学 高中语文教师
A185: 182 | B185: 20232206 | C185: 黄艳君 | D185: 77.72 | E185: 80.8 | F185: 79.26 | G185: 88 义县高级中学 高中语文教师
A186: 183 | B186: 20232233 | C186: 张钰晗 | D186: 76.04 | E186: 83.4 | F186: 79.72 | G186: 88 义县高级中学 高中语文教师
A187: 184 | B187: 20232245 | C187: 肖月 | D187: 81.14 | E187: 90.2 | F187: 85.67 | G187: 89 义县高级中学 高中政治教师
A188: 185 | B188: 20232239 | C188: 季星卉 | D188: 66.8 | E188: 90.6 | F188: 78.7 | G188: 89 义县高级中学 高中政治教师
A189: 186 | B189: 20232238 | C189: 吉丽 | D189: 65.16 | E189: 90.2 | F189: 77.68 | G189: 89 义县高级中学 高中政治教师
A190: 187 | B190: 20232235 | C190: 高河铜 | D190: 60.96 | E190: 83.6 | F190: 72.28 | G190: 89 义县高级中学 高中政治教师
A191: 188 | B191: 20232248 | C191: 张硕 | D191: 60.1 | E191: 89.2 | F191: 74.65 | G191: 89 义县高级中学 高中政治教师
A192: 189 | B192: 20232243 | C192: 萨如拉 | D192: 54.18 | E192: 79.6 | F192: 66.89 | G192: 89 义县高级中学 高中政治教师
A193: 190 | B193: 20232250 | C193: 徐然然 | D193: 77.56 | E193: 90.6 | F193: 84.08 | G193: 90 义县第二高级中学 高中地理教师
A194: 191 | B194: 20232253 | C194: 王菲菲 | D194: 75.2 | E194: 87 | F194: 81.1 | G194: 91 义县第二高级中学 高中历史教师
A195: 192 | B195: 20232252 | C195: 骞海奇 | D195: 73.78 | E195: 90 | F195: 81.89 | G195: 91 义县第二高级中学 高中历史教师
A196: 193 | B196: 20232256 | C196: 韩晓雪 | D196: 73.34 | E196: 放弃 | G196: 92 义县第二高级中学 高中生物教师
A197: 194 | B197: 20232257 | C197: 刘敏 | D197: 65.62 | E197: 放弃 | G197: 92 义县第二高级中学 高中生物教师
A198: 195 | B198: 20232258 | C198: 任佩山 | D198: 62.72 | E198: 84.2 | F198: =D198*0.5+E198*0.5 -> 73.46 | G198: 92 义县第二高级中学 高中生物教师
A199: 196 | B199: 20232293 | C199: 许新辉 | D199: 86.04 | E199: 82.8 | F199: 84.42 | G199: 93 义县第二高级中学 高中体育教师
A200: 197 | B200: 20232271 | C200: 谷明泽 | D200: 81.22 | E200: 放弃 | G200: 93 义县第二高级中学 高中体育教师
... 18 more rows
